bitfinex-derivatives/quotes_SOLF0:USTF0_20241230
["timestamp","ask_amount","ask_price","bid_price","bid_amount"]
[1735592481278,2.5694,194.86,194.84,15.20877917]
[1735592481469,11.19728965,194.89,194.84,7.11148952]
[1735592481679,2.5695,194.85,194.84,7.11148952]
[1735592482073,8.09728965,194.87,194.8,19.40467917]
[1735592482372,2.5697,194.84,194.8,16.83457917]
[1735592483472,2.5697,194.84,194.8,9.72308965]
[1735592483978,3.1,194.86,194.8,9.72308965]
[1735592484176,2.5695,194.85,194.8,12.29318965]
[1735592485774,2.5697,194.84,194.8,8.09728965]
[1735592486278,2.5697,194.84,194.79,2.5703]
[1735592487278,2.5698,194.83,194.79,2.5703]
[1735592487681,8.09728965,194.85,194.78,10.66758965]
[1735592487978,2.5699,194.82,194.78,10.66758965]
[1735592488179,2.5699,194.82,194.78,8.09728965]
[1735592488681,2.5699,194.82,194.75,8.72528952]
[1735592488883,2.5699,194.82,194.78,8.09728965]
[1735592489484,2.5696,194.84,194.8,2.5701]
[1735592489686,2.5696,194.84,194.8,10.66738965]
[1735592490185,2.5696,194.84,194.8,2.5701]
[1735592490784,8.09728965,194.85,194.78,8.09728965]
[1735592490984,10.66678965,194.85,194.81,2.57]
[1735592491589,10.66678965,194.85,194.78,8.09728965]
[1735592492190,10.66678965,194.85,194.8,2.5701]
[1735592492689,10.66678965,194.85,194.81,2.5699]
[1735592492879,10.66678965,194.85,194.78,8.09728965]
[1735592493195,2.5697,194.84,194.8,2.5701]
[1735592493392,8.09728965,194.83,194.8,2.5701]
[1735592493893,8.09728965,194.83,194.75,1.6138]
[1735592494088,8.09728965,194.81,194.78,2.5703]
[1735592494297,3.04,194.8,194.78,2.5703]
[1735592499193,3.04,194.8,194.75,9.71108965]
[1735592499194,11.13728965,194.8,194.75,2.5708]
[1735592499395,8.09728965,194.78,194.75,2.5708]
[1735592499992,8.09728965,194.78,194.71,1.6497]
[1735592500298,2.5706,194.77,194.74,2.5709]
[1735592500797,2.5704,194.78,194.74,2.5709]
[1735592502299,2.5705,194.78,194.73,2.571]
[1735592503002,2.5706,194.77,194.73,2.571]
[1735592505197,8.09728965,194.79,194.71,9.74698965]
[1735592505398,2.5708,194.76,194.72,2.5712]
[1735592505702,3.04,194.75,194.72,2.5712]
[1735592506096,5.6108,194.75,194.72,2.5712]
[1735592507197,3.04,194.75,194.71,1.6497]
[1735592507398,11.13728965,194.75,194.68,8.09728965]
[1735592508096,8.09728965,194.73,194.66,94.52820201]
[1735592508302,8.09728965,194.69,194.65,7.11148952]
[1735592508499,3.04,194.68,194.65,7.11148952]
[1735592509002,2.5721,194.66,194.62,31.01014384]
[1735592509706,3.04,194.72,194.65,8.09728965]
[1735592509901,3.04,194.71,194.69,8.09728965]
[1735592510105,3.04,194.71,194.7,2.5715]
[1735592510702,8.09728965,194.78,194.69,8.09728965]
[1735592510903,3.04,194.77,194.73,2.571]
[1735592511106,3.04,194.77,194.71,8.09728965]
[1735592511505,10.66808965,194.76,194.71,8.09728965]
[1735592512005,10.66808965,194.76,194.71,10.66848965]
[1735592512600,10.66808965,194.76,194.71,2.5712]
[1735592513806,10.66808965,194.76,194.69,8.09728965]
[1735592514007,10.66808965,194.76,194.71,2.5713]
[1735592514609,10.66808965,194.76,194.72,2.5712]
[1735592521211,10.66808965,194.76,194.73,2.5711]
[1735592521807,10.66808965,194.76,194.71,8.09728965]
[1735592522005,5.5701,194.81,194.75,8.09728965]
[1735592522213,3.0,194.81,194.75,8.09728965]
[1735592523015,2.5702,194.8,194.76,2.5707]
[1735592524215,2.5702,194.8,194.75,8.09728965]
[1735592524216,2.5707,194.76,194.71,8.09728965]
[1735592524414,3.0,194.75,194.71,8.09728965]
[1735592524819,8.09728965,194.74,194.69,36.53503349]
[1735592525013,8.09728965,194.72,194.69,28.43774384]
[1735592525510,2.5715,194.71,194.69,28.43774384]
[1735592525819,8.09728965,194.74,194.69,28.43774384]
[1735592526117,10.66828965,194.74,194.7,2.5714]
[1735592528618,10.66858965,194.72,194.67,2.5717]
[1735592528817,8.09728965,194.72,194.66,8.70908952]
[1735592529523,2.5715,194.7,194.66,4.1696]
[1735592529819,3.0,194.69,194.66,4.1696]
[1735592530414,5.5716,194.69,194.66,4.1696]
[1735592530614,3.0,194.69,194.66,1.5976]
[1735592531314,3.0,194.69,194.65,2.5721]
[1735592531517,2.5717,194.68,194.65,2.5721]
[1735592532218,2.5719,194.67,194.64,2.5722]
[1735592533017,8.09728965,194.66,194.63,7.11148952]
[1735592533218,2.5722,194.65,194.62,7.11148952]
[1735592533417,3.02,194.64,194.62,7.11148952]
[1735592533817,2.5724,194.63,194.62,7.11148952]
[1735592534018,11.11728965,194.64,194.62,7.11148952]
[1735592534315,11.11728965,194.64,194.6,11.27638952]
[1735592535219,3.02,194.64,194.6,7.11148952]
[1735592535640,11.11728965,194.64,194.6,7.11148952]
[1735592536527,2.5726,194.62,194.59,9.68438952]
[1735592537027,11.11728965,194.64,194.59,9.68438952]
[1735592537227,3.02,194.64,194.59,7.11148952]
[1735592537421,3.02,194.64,194.62,8.09728965]
[1735592537724,8.09728965,194.7,194.62,8.09728965]
[1735592537925,3.02,194.69,194.64,8.09728965]
[1735592538230,3.02,194.69,194.66,2.5719]
[1735592538424,3.02,194.69,194.66,10.66918965]
[1735592539428,8.09728965,194.72,194.66,10.66918965]
[1735592539625,3.02,194.71,194.68,2.5716]
[1735592543034,5.5913,194.71,194.67,2.5718]
[1735592545225,5.5913,194.71,194.68,8.09728965]
[1735592545429,5.5913,194.71,194.68,10.66898965]
[1735592546639,5.5913,194.71,194.68,8.09728965]
[1735592547130,5.5913,194.71,194.67,2.5718]
[1735592548133,3.02,194.71,194.67,2.5718]
[1735592548334,2.5715,194.7,194.67,2.5718]
[1735592548739,3.02,194.71,194.69,2.5715]
[1735592549227,2.5712,194.72,194.69,2.5715]
[1735592549425,5.5912,194.72,194.69,2.5715]
[1735592549934,5.5912,194.72,194.7,10.66878965]
[1735592550130,2.5711,194.73,194.7,10.66878965]
[1735592550333,5.5911,194.73,194.68,8.09728965]
[1735592551035,5.5911,194.73,194.69,2.5715]
[1735592553837,3.02,194.73,194.68,8.09728965]
[1735592555434,3.02,194.73,194.7,2.5714]
[1735592556641,5.5911,194.73,194.7,2.5714]
[1735592567952,3.02,194.73,194.66,7.11148952]
[1735592568154,2.5712,194.72,194.69,2.5716]
[1735592571456,3.9735,194.81,194.7,8.09728965]
[1735592571656,3.77475311,194.8,194.75,8.09728965]
[1735592571851,3.02,194.8,194.75,8.09728965]
[1735592573055,3.02,194.79,194.75,8.09728965]
[1735592573461,2.5706,194.77,194.75,8.09728965]
[1735592574965,2.5704,194.79,194.75,10.66798965]
[1735592575258,5.5704,194.79,194.75,10.66798965]
[1735592575458,5.5704,194.79,194.76,2.5707]
[1735592575957,10.18956354,194.82,194.77,8.09728965]
[1735592575958,3.0,194.8,194.77,8.09728965]
[1735592578459,3.0,194.8,194.77,10.66778965]
[1735592579359,3.0,194.8,194.77,8.09728965]
[1735592579558,3.0,194.8,194.78,2.5704]
[1735592580654,4.66217389,194.82,194.79,10.66758965]
[1735592580861,3.0,194.84,194.81,8.09728965]
[1735592581251,3.0,194.85,194.83,8.09728965]
[1735592581653,3.0,194.87,194.83,8.09728965]
[1735592581851,3.0,194.87,194.83,10.66698965]
[1735592582860,5.5693,194.87,194.83,10.66698965]
[1735592586160,8.09728965,194.86,194.78,1.6248]
[1735592586361,8.09728965,194.84,194.79,8.09728965]
[1735592586564,8.09728965,194.84,194.78,1.6248]
[1735592587464,2.57,194.81,194.78,4.1951]
[1735592590768,2.57,194.81,194.79,8.09728965]
[1735592590967,3.0,194.81,194.71,28.43774384]
[1735592591167,2.5704,194.78,194.75,8.09728965]
[1735592591369,3.0,194.81,194.75,8.09728965]
[1735592592365,3.0,194.81,194.72,1.5478]
[1735592592566,8.09728965,194.8,194.73,8.09728965]
[1735592593464,2.5707,194.76,194.73,10.66838965]
[1735592593662,3.0,194.76,194.72,1.5478]
[1735592594066,3.0,194.76,194.71,8.09728965]
[1735592594267,2.5709,194.75,194.72,2.5712]
[1735592594470,3.0,194.76,194.71,8.09728965]
[1735592595467,2.571,194.74,194.71,8.09728965]
[1735592596472,2.5709,194.75,194.72,2.5712]
[1735592598572,3.0,194.76,194.71,8.09728965]
[1735592598774,2.571,194.74,194.71,10.66858965]
[1735592599376,2.5709,194.75,194.71,8.09728965]
[1735592599673,3.0,194.76,194.71,8.09728965]
[1735592600567,2.5711,194.74,194.72,2.5712]
[1735592600773,3.0,194.76,194.73,8.09728965]
[1735592601773,94.30380343,194.83,194.75,8.09728965]
[1735592601973,3.7539887,194.82,194.77,8.09728965]
[1735592602273,3.0,194.82,194.77,8.09728965]
[1735592603573,2.57,194.81,194.77,10.66778965]
[1735592605778,2.57,194.81,194.77,8.09728965]
[1735592606077,2.57,194.81,194.78,2.5704]
[1735592606877,2.57,194.81,194.77,8.09728965]
[1735592607178,2.5707,194.76,194.71,7.11148952]
[1735592607379,3.0,194.76,194.71,7.11148952]
[1735592607578,8.09728965,194.75,194.71,7.11148952]
[1735592607778,2.571,194.74,194.71,7.11148952]
[1735592608279,2.571,194.74,194.7,8.09728965]
[1735592608880,2.5708,194.75,194.71,2.5713]
[1735592611081,2.5708,194.75,194.72,2.5712]
[1735592611579,5.5707,194.76,194.72,2.5712]
[1735592611777,5.5707,194.76,194.73,2.5711]
[1735592611980,3.0,194.77,194.74,8.09728965]
[1735592612379,3.0,194.77,194.76,2.5707]
[1735592612680,3.0,194.77,194.76,10.66798965]
[1735592612876,3.0,194.77,194.67,1.5893]
[1735592613082,2.5709,194.75,194.71,2.5713]
[1735592613681,8.09728965,194.76,194.69,15.20877917]
[1735592613881,2.571,194.74,194.7,2.5714]
[1735592614585,2.5711,194.73,194.7,2.5714]
[1735592614779,8.09728965,194.76,194.69,8.09728965]
[1735592615581,2.571,194.74,194.7,2.5715]
[1735592623687,2.571,194.74,194.71,2.5713]
[1735592623890,2.571,194.74,194.71,10.66858965]
[1735592627397,2.571,194.74,194.71,2.5713]
[1735592630802,2.5708,194.76,194.73,2.5711]
[1735592631605,2.5702,194.8,194.74,8.09728965]
[1735592631902,3.0,194.79,194.74,8.09728965]
[1735592632202,2.5702,194.8,194.76,2.5706]
[1735592632404,3.0,194.79,194.76,2.5706]
[1735592632601,2.5707,194.76,194.69,28.43774384]
[1735592632799,2.5707,194.76,194.72,2.5711]
[1735592633001,8.09728965,194.78,194.73,7.11148952]
[1735592633196,2.5706,194.77,194.73,7.11148952]
[1735592633501,8.09728965,194.78,194.73,7.11148952]
[1735592634305,2.5708,194.76,194.72,2.5711]
[1735592634500,8.09728965,194.78,194.72,2.5711]
[1735592634997,2.5709,194.75,194.72,2.5711]
[1735592636498,8.09728965,194.78,194.71,15.20877917]
[1735592636703,3.0409,194.84,194.71,7.11148952]
[1735592636704,2.5712,194.72,194.71,7.11148952]
[1735592636902,5.5712,194.72,194.71,7.11148952]
[1735592637299,3.0,194.72,194.7,28.43774384]
[1735592637502,2.5713,194.71,194.7,28.43774384]
[1735592638704,2.5715,194.7,194.67,2.5718]
[1735592639906,2.5713,194.71,194.68,2.5717]
[1735592641606,3.0,194.72,194.66,8.09728965]
[1735592641808,3.0,194.72,194.71,2.5713]
[1735592642113,3.0,194.73,194.68,8.09728965]
[1735592642407,2.571,194.74,194.68,8.09728965]
[1735592642607,5.571,194.74,194.7,8.09728965]
[1735592643109,3.0,194.74,194.72,2.5712]
[1735592645605,3.0,194.74,194.7,8.09728965]
[1735592645804,3.0,194.74,194.73,2.5711]
[1735592647211,3.0,194.74,194.72,2.5712]
[1735592649611,94.31112319,194.8,194.72,8.09728965]
[1735592649913,3.0,194.79,194.74,8.09728965]
[1735592650311,94.31112319,194.8,194.77,2.5705]
[1735592650513,3.0,194.79,194.77,2.5705]
[1735592650709,3.0,194.78,194.77,2.5705]
[1735592651907,3.0,194.79,194.77,2.5705]
[1735592655413,5.5703,194.79,194.76,2.5706]
[1735592656115,5.5703,194.79,194.73,8.09728965]
[1735592656317,5.5703,194.79,194.75,2.5708]
[1735592659111,5.5703,194.79,194.75,8.09728965]
[1735592660018,5.5703,194.79,194.73,8.09728965]
[1735592660821,2.5707,194.76,194.74,2.5709]
[1735592661020,8.09728965,194.76,194.71,28.43774384]
[1735592661221,8.09728965,194.76,194.71,7.11148952]
[1735592661419,2.5712,194.72,194.71,7.11148952]
[1735592661727,5.5712,194.72,194.71,7.11148952]
[1735592662421,5.5712,194.72,194.68,9.68308952]
[1735592662824,5.5712,194.72,194.68,7.11148952]
[1735592663019,5.5712,194.72,194.69,2.5716]
[1735592663527,3.0,194.72,194.7,2.5714]
[1735592663722,3.0,194.72,194.68,8.09728965]
[1735592664422,3.0,194.72,194.69,2.5716]
[1735592664725,3.0,194.72,194.68,8.09728965]
[1735592665127,3.0,194.73,194.71,2.5713]
[1735592666131,3.0,194.73,194.7,8.09728965]
[1735592666325,3.0,194.73,194.72,2.5712]
[1735592674436,2.5706,194.77,194.7,8.09728965]
[1735592674633,3.0,194.76,194.74,2.5709]
[1735592675340,3.0,194.76,194.72,8.09728965]
[1735592675638,3.0,194.76,194.75,2.5708]
[1735592675838,3.0,194.77,194.74,8.09728965]
[1735592677238,3.0,194.77,194.76,2.5707]
[1735592686751,2.5707,194.76,194.72,1.4639]
[1735592687053,2.5707,194.76,194.72,9.56118965]
[1735592687648,3.0,194.77,194.72,1.4639]
[1735592687852,8.09728965,194.76,194.72,1.4639]
[1735592688352,2.5708,194.75,194.72,4.035]
[1735592689150,2.571,194.74,194.72,4.035]
[1735592693163,2.5709,194.75,194.72,4.035]
[1735592694869,2.571,194.74,194.72,4.035]
[1735592697569,2.5709,194.75,194.72,4.035]
[1735592698072,3.0,194.74,194.72,4.035]
[1735592702477,11.09728965,194.74,194.7,2.5714]
[1735592702674,11.09728965,194.74,194.69,7.11148952]
[1735592703074,8.09728965,194.72,194.69,7.11148952]
[1735592703473,8.09728965,194.7,194.68,7.11148952]
[1735592703675,5.5716,194.69,194.68,7.11148952]
[1735592704275,5.5716,194.69,194.68,4.69268952]
[1735592704575,5.5716,194.69,194.68,0.62038952]
[1735592705178,3.75311822,194.69,194.67,21.11794384]
[1735592705381,3.75311822,194.69,194.62,21.11794384]
[1735592705382,2.5723,194.64,194.62,21.11794384]
[1735592705584,3.0,194.63,194.62,21.11794384]
[1735592705974,5.5724,194.63,194.62,21.11794384]
[1735592706684,3.0,194.63,194.57,8.09728965]
[1735592706884,2.5725,194.62,194.57,10.67048965]
[1735592708784,2.5725,194.62,194.57,8.09728965]
[1735592708981,2.5725,194.62,194.58,2.573]
[1735592709479,2.5725,194.62,194.57,8.09728965]
[1735592709677,2.5725,194.62,194.55,56.87001154]
[1735592709881,11.09728965,194.63,194.57,8.09728965]
[1735592710282,2.5726,194.62,194.57,8.09728965]
[1735592710486,11.09728965,194.63,194.57,8.09728965]
[1735592710789,2.5729,194.6,194.57,8.09728965]
[1735592711485,2.5729,194.6,194.55,59.44341154]
[1735592711689,8.09728965,194.61,194.55,56.87001154]
[1735592712187,8.09728965,194.61,194.53,10.67098965]
[1735592712591,8.09728965,194.59,194.53,8.09728965]
[1735592712893,8.09728965,194.57,194.51,10.67128965]
[1735592713084,3.0,194.56,194.51,10.67128965]
[1735592713286,3.0,194.56,194.48,56.99959876]
[1735592713485,8.09728965,194.55,194.48,65.09688841]
[1735592713787,8.09728965,194.55,194.5,8.09728965]
[1735592714683,10.67078965,194.55,194.51,5.8539]
[1735592714894,8.09728965,194.57,194.52,8.09728965]
[1735592715091,3.0,194.55,194.52,8.09728965]
[1735592715287,3.0,194.55,194.53,2.5736]
[1735592715487,1.4874,194.69,194.54,8.09728965]
[1735592715692,8.09728965,194.63,194.57,8.09728965]
[1735592715888,3.0,194.62,194.57,8.09728965]
[1735592716085,2.5727,194.61,194.57,10.67048965]
[1735592716285,2.5727,194.61,194.57,2.5732]
[1735592719196,2.5727,194.61,194.56,2.5733]
[1735592719793,3.0,194.62,194.55,8.09728965]
[1735592719984,2.5729,194.59,194.55,10.67068965]
[1735592720893,8.09728965,194.59,194.51,3.28]
[1735592721094,8.09728965,194.59,194.53,2.5737]
[1735592723494,8.09728965,194.57,194.52,8.09728965]
[1735592723797,5.5734,194.56,194.52,10.67108965]
[1735592727090,8.09728965,194.55,194.51,3.28]
[1735592727501,8.09728965,194.53,194.51,3.28]
[1735592727999,2.5739,194.52,194.51,3.28]
[1735592729590,2.5739,194.52,194.41,1.5095]
[1735592729591,8.09728965,194.53,194.36,142.44274443]
[1735592729794,8.09728965,194.45,194.38,93.56293631]
[1735592730098,2.5751,194.43,194.38,8.09728965]
[1735592730300,3.0,194.42,194.4,8.09728965]
[1735592730697,3.0,194.42,194.4,10.67268965]
[1735592731602,3.0,194.47,194.4,8.09728965]
[1735592731896,3.0,194.47,194.45,8.09728965]
[1735592732091,3.0,194.5,194.45,8.09728965]
[1735592732297,3.0,194.5,194.49,8.09728965]
[1735592732492,3.0,194.5,194.47,10.67178965]
[1735592732902,3.0,194.5,194.47,8.09728965]
[1735592733104,3.0,194.5,194.41,3.1408]
[1735592733400,3.0,194.5,194.45,8.09728965]
[1735592733901,2.5745,194.48,194.45,8.09728965]
[1735592734102,3.0,194.5,194.45,8.09728965]
[1735592734799,2.5744,194.48,194.45,8.09728965]
[1735592735196,2.5744,194.48,194.43,8.09728965]
[1735592735397,2.5744,194.48,194.43,10.67218965]
[1735592736502,2.5744,194.48,194.43,2.5749]
[1735592736701,2.5744,194.48,194.43,10.67218965]
[1735592737099,2.5744,194.48,194.44,2.5749]
[1735592738503,8.09728965,194.48,194.41,3.1408]
[1735592738703,2.5747,194.46,194.42,2.5751]
[1735592738904,3.0,194.45,194.42,2.5751]
[1735592739404,5.5748,194.45,194.41,2.5753]
[1735592739606,5.5748,194.45,194.41,10.67258965]
[1735592741103,5.5748,194.45,194.42,2.5752]
[1735592742807,3.0,194.45,194.42,2.5752]
[1735592743908,3.0,194.45,194.41,8.09728965]
[1735592744103,8.09728965,194.52,194.43,8.09728965]
[1735592744307,3.0,194.51,194.46,8.09728965]
[1735592744609,2.5744,194.49,194.46,8.09728965]
[1735592745308,2.5744,194.48,194.46,8.09728965]
[1735592745910,2.5744,194.48,194.44,10.67218965]
[1735592746309,8.09728965,194.45,194.37,1.5473]
[1735592746609,2.5753,194.41,194.37,4.1231]
[1735592746806,3.0,194.4,194.37,25.45075362]
[1735592747408,5.5755,194.4,194.37,22.87495362]
[1735592748008,3.0,194.4,194.37,22.87495362]
[1735592748210,3.0,194.4,194.37,4.1231]
[1735592748803,3.0,194.4,194.39,2.5756]
[1735592749209,3.0,194.4,194.37,1.5473]
[1735592749411,3.0,194.4,194.38,2.5757]
[1735592749714,3.0,194.4,194.37,1.5473]
[1735592750506,5.1473,194.54,194.37,14.27251757]
[1735592750507,12.72521757,194.52,194.37,14.27251757]
[1735592750713,2.5749,194.45,194.41,2.5752]
[1735592750907,3.0,194.44,194.37,14.27251757]
[1735592751812,2.575,194.43,194.39,2.5755]
[1735592752008,3.0,194.44,194.37,14.27251757]
[1735592752807,2.5752,194.42,194.39,2.5755]
[1735592754108,3.0,194.44,194.33,21.32765362]
[1735592754321,12.72521757,194.4,194.33,21.32765362]
[1735592754512,3.0,194.39,194.32,21.32765362]
[1735592754806,2.5764,194.33,194.32,21.32765362]
[1735592755006,5.5764,194.33,194.32,21.32765362]
[1735592755210,31.5768,194.3,194.29,85.46564666]
[1735592755404,44.30201757,194.3,194.29,85.46564666]
[1735592756111,2.5772,194.27,194.19,2.5782]
[1735592756311,3.0,194.26,194.19,2.5782]
[1735592756705,3.0,194.26,194.2,2.5781]
[1735592756907,3.0,194.26,194.18,4.5026]
[1735592757111,3.0,194.25,194.19,12.72521757]
[1735592757410,15.30161757,194.33,194.22,12.72521757]
[1735592757611,12.72521757,194.33,194.22,12.72521757]
[1735592757812,3.0,194.32,194.25,2.5774]
[1735592758013,3.0,194.32,194.22,12.72521757]
[1735592758214,3.0,194.32,194.21,12.72521757]
[1735592758418,12.72521757,194.31,194.16,61.16420751]
[1735592758711,12.72521757,194.31,194.18,12.72521757]
[1735592758914,2.5771,194.28,194.21,2.5779]
[1735592759113,3.0,194.27,194.18,12.72521757]
[1735592759313,3.0,194.27,194.2,2.578]
[1735592759613,2.5768,194.3,194.18,12.72521757]
[1735592759814,3.0,194.29,194.18,12.72521757]
[1735592760310,3.0,194.28,194.18,12.72521757]
[1735592760514,2.9915,194.37,194.16,61.16420751]
[1735592760515,12.72521757,194.34,194.21,12.72521757]
[1735592760717,3.0,194.33,194.29,2.5769]
[1735592761016,3.0,194.34,194.25,12.72521757]
[1735592761217,3.0,194.34,194.27,2.5771]
[1735592761414,3.0,194.34,194.25,12.72521757]
[1735592761415,5.5763,194.34,194.25,12.72521757]
[1735592761611,3.0,194.34,194.25,12.72521757]
[1735592761816,12.72521757,194.41,194.28,12.72521757]
[1735592762114,12.72521757,194.44,194.31,12.72521757]
[1735592762312,3.0,194.43,194.34,12.72521757]
[1735592762512,12.72521757,194.48,194.41,2.5752]
[1735592762817,12.72521757,194.48,194.4,12.72521757]
[1735592762818,2.5745,194.48,194.4,12.72521757]
[1735592763007,3.0,194.49,194.4,12.72521757]
[1735592763411,3.0,194.49,194.41,4.5394]
[1735592763712,3.0,194.49,194.41,1.5037]
[1735592763713,2.575,194.44,194.41,1.5037]
[1735592763907,2.575,194.44,194.34,14.22891757]
[1735592763908,3.0,194.44,194.34,14.22891757]
[1735592764112,3.0,194.44,194.34,1.5037]
[1735592764316,2.5756,194.39,194.34,1.5037]
[1735592764512,3.0,194.39,194.34,1.5037]
[1735592764815,2.5757,194.38,194.34,1.5037]
[1735592765017,3.0,194.39,194.34,1.5037]
[1735592765820,5.5756,194.39,194.34,1.5037]
[1735592766114,3.0,194.39,194.31,3.0357]
[1735592766306,2.5759,194.37,194.31,3.0357]
[1735592766513,3.0,194.39,194.26,20.36480985]
[1735592768415,2.576,194.37,194.29,2.5768]
[1735592768620,2.576,194.37,194.26,20.36480985]
[1735592768918,3.0,194.39,194.26,20.36480985]
[1735592769122,5.5757,194.39,194.33,2.5763]
[1735592769615,3.0,194.38,194.34,2.5761]
[1735592769820,3.0,194.38,194.3,20.36480985]
[1735592770020,3.0,194.38,194.31,1.5386]
[1735592770415,3.0,194.38,194.35,2.576]
[1735592770616,3.0,194.38,194.31,1.5386]
[1735592770824,3.0,194.41,194.34,20.36480985]
[1735592771421,3.0,194.41,194.32,3.136]
[1735592771721,2.5758,194.38,194.32,3.136]
[1735592771918,3.0,194.41,194.32,3.136]
[1735592772122,3.0,194.41,194.33,2.5763]
[1735592773024,2.5758,194.37,194.32,3.136]
[1735592773326,3.0,194.36,194.32,3.136]
[1735592774423,5.576,194.36,194.32,3.136]
[1735592774723,3.0,194.36,194.33,2.5762]
[1735592775025,3.0,194.36,194.32,3.136]
[1735592776428,5.5761,194.36,194.32,4.1559]
[1735592776624,3.0,194.36,194.31,1.5386]
[1735592776927,3.0,194.36,194.26,3.1837]
[1735592777322,3.0,194.36,194.26,1.5854]
[1735592777526,2.5769,194.29,194.22,20.36480985]
[1735592777730,5.5769,194.29,194.22,20.36480985]
[1735592778532,5.5769,194.29,194.25,2.5773]
[1735592779129,5.5769,194.29,194.22,5.67273779]
[1735592779525,5.5769,194.29,194.25,2.5773]
[1735592779733,3.0,194.29,194.22,5.67273779]
[1735592780232,3.0,194.29,194.28,2.577]
[1735592781136,3.0,194.34,194.25,20.36480985]
[1735592781331,3.0,194.36,194.26,1.5243]
[1735592781539,3.0,194.36,194.27,1.5149]
[1735592782027,2.5762,194.35,194.27,1.5149]
[1735592782227,3.0,194.36,194.27,1.5149]
[1735592782635,2.5765,194.32,194.27,1.5149]
[1735592783033,3.0,194.31,194.22,5.67273779]
[1735592783247,3.0,194.3,194.25,2.5773]
[1735592783435,3.0,194.3,194.21,1.508]
[1735592783831,2.5771,194.28,194.23,2.5776]
[1735592784035,2.5771,194.28,194.21,1.508]
[1735592784829,2.5769,194.29,194.25,2.5774]
[1735592786334,3.0,194.3,194.18,3.0392]
[1735592786738,0.7521551,194.29,194.18,3.0392]
[1735592787336,0.7521551,194.29,194.16,20.63009842]
[1735592788532,2.5773,194.27,194.23,2.5776]
[1735592788735,1.5755,194.32,194.16,40.99490827]
[1735592788935,3.79237126,194.31,194.16,40.99490827]
[1735592789136,2.5771,194.28,194.16,40.99490827]
[1735592790536,2.5771,194.28,194.25,2.5774]
[1735592791740,2.5769,194.29,194.2,2.578]
[1735592792040,2.5769,194.29,194.16,20.63009842]
[1735592792243,2.5769,194.29,194.25,2.5773]
[1735592792640,3.04,194.31,194.16,20.63009842]
[1735592792842,3.04,194.31,194.26,2.5772]
[1735592793439,2.5769,194.29,194.26,2.5772]
[1735592793847,5.6168,194.31,194.27,2.5771]
[1735592794142,3.04,194.31,194.27,2.5771]
[1735592794733,1.5755,194.32,194.27,2.5771]
[1735592794936,3.04,194.31,194.27,2.5771]
[1735592795143,2.5769,194.3,194.27,2.5771]
[1735592797241,2.5769,194.3,194.26,2.5773]
[1735592797443,3.04,194.29,194.26,2.5773]
[1735592797644,2.5769,194.3,194.27,2.5771]
[1735592797843,20.36480985,194.33,194.15,23.40480985]
[1735592797844,3.04,194.29,194.15,23.40480985]
[1735592798044,3.04,194.32,194.2,20.36480985]
[1735592798251,3.04,194.32,194.3,2.5767]
[1735592799358,3.04,194.32,194.29,2.5769]
[1735592800159,5.6165,194.32,194.2,8.76921905]
[1735592800459,5.6165,194.32,194.2,3.04]
[1735592800854,5.6165,194.32,194.23,2.5776]
[1735592801057,5.6165,194.32,194.2,3.04]
[1735592801553,2.5769,194.3,194.2,3.04]
[1735592801761,20.38858034,194.31,194.17,15.34464363]
[1735592802155,2.5773,194.27,194.17,15.34464363]
[1735592802359,5.6173,194.27,194.17,15.34464363]
[1735592802662,5.6173,194.27,194.24,2.5775]
[1735592803558,5.6173,194.27,194.25,2.5774]
[1735592803559,3.04,194.27,194.25,2.5774]
[1735592803758,3.04,194.27,194.17,5.157]
[1735592804159,3.04,194.27,194.26,2.5773]